[Event "Titled Tuesday Blitz December 20 Early 2022"]
[White "bennyficial"]
[Black "katchesskat"]
[WhiteElo "2145"]
[BlackElo "2391"]
[Result "0-1"]
[Round "05"]
[TimeControl "180+2"]
[Date "2022.12.20"]
[WhiteClock "0:00:11"]
[BlackClock "0:00:37"]

1. Nf3 {[%clk 0:02:50]}  c5 {[%clk 0:02:57]} 2. c4 {[%clk 0:02:49]}  Nf6 {[%clk 0:02:56]} 3. Nc3 {[%clk 0:02:41]}  e6 {[%clk 0:02:55]} 4. g3 {[%clk 0:02:36]}  b6 {[%clk 0:02:54]} 5. Bg2 {[%clk 0:02:36]}  Bb7 {[%clk 0:02:55]} 6. O-O {[%clk 0:02:36]}  d5 {[%clk 0:02:54]} 7. cxd5 {[%clk 0:02:35]}  exd5 {[%clk 0:02:54]} 8. d4 {[%clk 0:02:35]}  Bd6 {[%clk 0:02:54]} 9. b3 {[%clk 0:02:26]}  O-O {[%clk 0:02:54]} 10. Bb2 {[%clk 0:02:25]}  Re8 {[%clk 0:02:53]} 11. Nb5 {[%clk 0:02:00]}  Be7 {[%clk 0:02:48]} 12. Ne5 {[%clk 0:01:55]}  a6 {[%clk 0:02:40]} 13. Na3 {[%clk 0:01:50]}  Nbd7 {[%clk 0:02:22]} 14. Nc2 {[%clk 0:01:44]}  Rc8 {[%clk 0:02:19]} 15. Ne3 {[%clk 0:01:33]}  Nf8 {[%clk 0:02:10]} 16. Nf5 {[%clk 0:01:30]}  Ne6 {[%clk 0:01:54]} 17. dxc5 {[%clk 0:01:10]}  bxc5 {[%clk 0:01:51]} 18. Nxe7+ {[%clk 0:01:03]}  Rxe7 {[%clk 0:01:49]} 19. e3 {[%clk 0:00:59]}  Ng5 {[%clk 0:01:32]} 20. Ng4 {[%clk 0:00:55]}  Nfe4 {[%clk 0:01:28]} 21. h4 {[%clk 0:00:51]}  Ne6 {[%clk 0:01:22]} 22. h5 {[%clk 0:00:50]}  h6 {[%clk 0:01:21]} 23. Rc1 {[%clk 0:00:38]}  Rd7 {[%clk 0:01:20]} 24. Rc2 {[%clk 0:00:32]}  f6 {[%clk 0:01:02]} 25. Qf3 {[%clk 0:00:30]}  d4 {[%clk 0:00:54]} 26. Qf5 {[%clk 0:00:28]}  d3 {[%clk 0:00:49]} 27. Qxe6+ {[%clk 0:00:24]}  Kh8 {[%clk 0:00:49]} 28. Bxe4 {[%clk 0:00:12]}  dxc2 {[%clk 0:00:41]} 29. Bxc2 {[%clk 0:00:12]}  Rd2 {[%clk 0:00:40]} 30. Qf5 {[%clk 0:00:11]}  Rxc2 {[%clk 0:00:38]} 31. Qxc2 {[%clk 0:00:12]}  Qd5 {[%clk 0:00:38]} 32. Nxf6 {[%clk 0:00:11]}  Qg2# {[%clk 0:00:37]} 0-1


[Site "https://www.chess.com"]

[Event "Titled Tuesday Blitz December 20 Early 2022"]
[White "deibittowers"]
[Black "Derybas, Igor"]
[BlackFideId "41846400"]
[WhiteElo "2072"]
[BlackElo "1490"]
[Result "0-1"]
[Round "05"]
[TimeControl "180+2"]
[Date "2022.12.20"]
[WhiteClock "0:00:05"]
[BlackClock "0:00:18"]

1. e4 {[%clk 0:03:00]}  c5 {[%clk 0:02:57]} 2. Nf3 {[%clk 0:02:58]}  d6 {[%clk 0:02:57]} 3. d4 {[%clk 0:02:59]}  cxd4 {[%clk 0:02:58]} 4. Nxd4 {[%clk 0:02:59]}  Nf6 {[%clk 0:02:59]} 5. Nc3 {[%clk 0:02:59]}  a6 {[%clk 0:02:59]} 6. f4 {[%clk 0:02:57]}  g6 {[%clk 0:02:53]} 7. e5 {[%clk 0:02:56]}  dxe5 {[%clk 0:02:39]} 8. fxe5 {[%clk 0:02:56]}  Nd5 {[%clk 0:02:37]} 9. Nf3 {[%clk 0:02:56]}  Nxc3 {[%clk 0:02:29]} 10. Qxd8+ {[%clk 0:02:55]}  Kxd8 {[%clk 0:02:26]} 11. bxc3 {[%clk 0:02:55]}  Nc6 {[%clk 0:02:21]} 12. Bf4 {[%clk 0:02:55]}  Bg4 {[%clk 0:02:05]} 13. O-O-O+ {[%clk 0:02:43]}  Kc8 {[%clk 0:02:01]} 14. h3 {[%clk 0:02:05]}  Bxf3 {[%clk 0:01:55]} 15. gxf3 {[%clk 0:02:05]}  e6 {[%clk 0:01:55]} 16. Bg5 {[%clk 0:01:53]}  Be7 {[%clk 0:01:47]} 17. Bf4 {[%clk 0:01:47]}  Kc7 {[%clk 0:01:42]} 18. h4 {[%clk 0:01:46]}  Rad8 {[%clk 0:01:40]} 19. Rxd8 {[%clk 0:01:44]}  Rxd8 {[%clk 0:01:39]} 20. Bd3 {[%clk 0:01:44]}  Rd5 {[%clk 0:01:32]} 21. h5 {[%clk 0:01:21]}  g5 {[%clk 0:01:17]} 22. c4 {[%clk 0:01:14]}  Rc5 {[%clk 0:01:05]} 23. Bg3 {[%clk 0:01:03]}  h6 {[%clk 0:01:04]} 24. Re1 {[%clk 0:01:02]}  Ra5 {[%clk 0:01:03]} 25. Kb2 {[%clk 0:00:58]}  Ba3+ {[%clk 0:01:00]} 26. Kb1 {[%clk 0:00:55]}  Bb4 {[%clk 0:00:58]} 27. Re4 {[%clk 0:00:53]}  Bc3 {[%clk 0:00:46]} 28. Be1 {[%clk 0:00:39]}  Bxe1 {[%clk 0:00:44]} 29. Rxe1 {[%clk 0:00:40]}  Rxe5 {[%clk 0:00:44]} 30. Rf1 {[%clk 0:00:36]}  Nd4 {[%clk 0:00:39]} 31. f4 {[%clk 0:00:33]}  gxf4 {[%clk 0:00:28]} 32. Rxf4 {[%clk 0:00:33]}  Nf5 {[%clk 0:00:29]} 33. Kb2 {[%clk 0:00:21]}  b6 {[%clk 0:00:29]} 34. Kc3 {[%clk 0:00:21]}  a5 {[%clk 0:00:29]} 35. a4 {[%clk 0:00:18]}  Nd6 {[%clk 0:00:25]} 36. Bh7 {[%clk 0:00:08]}  Rxh5 {[%clk 0:00:23]} 37. Bg8 {[%clk 0:00:08]}  Rf5 {[%clk 0:00:20]} 38. Rxf5 {[%clk 0:00:05]}  exf5 {[%clk 0:00:18]} 39. Kd4 {[%clk 0:00:05]}  h5 {[%clk 0:00:18]} 0-1


[Site "https://www.chess.com"]

[Event "Titled Tuesday Blitz December 20 Early 2022"]
[White "harperchesstt"]
[Black "Huda, Maryana"]
[BlackFideId "14116553"]
[WhiteElo "2366"]
[BlackElo "2160"]
[Result "1-0"]
[Round "05"]
[TimeControl "180+2"]
[Date "2022.12.20"]
[WhiteClock "0:00:06"]
[BlackClock "0:00:01"]

1. e4 {[%clk 0:03:00]}  c5 {[%clk 0:02:56]} 2. Nf3 {[%clk 0:03:00]}  Nc6 {[%clk 0:02:56]} 3. d4 {[%clk 0:03:00]}  cxd4 {[%clk 0:02:57]} 4. Nxd4 {[%clk 0:03:00]}  g6 {[%clk 0:02:58]} 5. Nc3 {[%clk 0:03:00]}  Bg7 {[%clk 0:02:58]} 6. Be3 {[%clk 0:03:01]}  Nf6 {[%clk 0:02:58]} 7. Bc4 {[%clk 0:03:01]}  O-O {[%clk 0:02:58]} 8. Bb3 {[%clk 0:03:02]}  Re8 {[%clk 0:02:57]} 9. O-O {[%clk 0:02:55]}  e6 {[%clk 0:02:56]} 10. Ndb5 {[%clk 0:02:52]}  d5 {[%clk 0:02:35]} 11. exd5 {[%clk 0:02:51]}  Nxd5 {[%clk 0:02:30]} 12. Bxd5 {[%clk 0:02:45]}  exd5 {[%clk 0:02:27]} 13. Qxd5 {[%clk 0:02:45]}  a6 {[%clk 0:02:18]} 14. Qxd8 {[%clk 0:02:22]}  Rxd8 {[%clk 0:02:16]} 15. Nc7 {[%clk 0:02:15]}  Rb8 {[%clk 0:02:08]} 16. N7d5 {[%clk 0:02:13]}  Bf5 {[%clk 0:02:02]} 17. Bb6 {[%clk 0:01:49]}  Rd7 {[%clk 0:01:58]} 18. Rfd1 {[%clk 0:01:39]}  Bxc2 {[%clk 0:01:55]} 19. Nf6+ {[%clk 0:01:38]}  Bxf6 {[%clk 0:01:51]} 20. Rxd7 {[%clk 0:01:39]}  Ne5 {[%clk 0:01:35]} 21. Rd2 {[%clk 0:01:16]}  Bf5 {[%clk 0:01:34]} 22. Bc7 {[%clk 0:01:14]}  Re8 {[%clk 0:01:05]} 23. Nd5 {[%clk 0:01:09]}  Bg7 {[%clk 0:01:00]} 24. Bxe5 {[%clk 0:00:55]}  Rxe5 {[%clk 0:00:56]} 25. Ne3 {[%clk 0:00:49]}  h5 {[%clk 0:00:42]} 26. Nxf5 {[%clk 0:00:47]}  Rxf5 {[%clk 0:00:43]} 27. g3 {[%clk 0:00:45]}  Rb5 {[%clk 0:00:41]} 28. Rb1 {[%clk 0:00:43]}  a5 {[%clk 0:00:36]} 29. b3 {[%clk 0:00:42]}  a4 {[%clk 0:00:35]} 30. Kg2 {[%clk 0:00:27]}  Bf6 {[%clk 0:00:26]} 31. Rd6 {[%clk 0:00:21]}  Kg7 {[%clk 0:00:25]} 32. b4 {[%clk 0:00:15]}  a3 {[%clk 0:00:21]} 33. Rb3 {[%clk 0:00:09]}  Bb2 {[%clk 0:00:20]} 34. Rd7 {[%clk 0:00:07]}  b6 {[%clk 0:00:13]} 35. Rf3 {[%clk 0:00:07]}  Rxb4 {[%clk 0:00:04]} 36. Rfxf7+ {[%clk 0:00:07]}  Kh6 {[%clk 0:00:03]} 37. h4 {[%clk 0:00:07]}  g5 {[%clk 0:00:01]} 38. Rd6+ {[%clk 0:00:06]} 1-0


[Site "https://www.chess.com"]

[Event "Titled Tuesday Blitz December 20 Early 2022"]
[White "lamomiajunior"]
[Black "Jasko, Pavel"]
[BlackFideId "980463"]
[WhiteElo "2526"]
[BlackElo "1693"]
[Result "0-1"]
[Round "05"]
[TimeControl "180+2"]
[Date "2022.12.20"]
[WhiteClock "0:02:03"]
[BlackClock "0:02:30"]

1. d4 {[%clk 0:03:00]}  d5 {[%clk 0:02:59]} 2. Nf3 {[%clk 0:03:00]}  c6 {[%clk 0:03:00]} 3. c4 {[%clk 0:02:57]}  Nf6 {[%clk 0:03:00]} 4. e3 {[%clk 0:02:56]}  a6 {[%clk 0:02:57]} 5. Nc3 {[%clk 0:02:51]}  Bf5 {[%clk 0:02:54]} 6. Be2 {[%clk 0:02:30]}  e6 {[%clk 0:02:51]} 7. Nh4 {[%clk 0:02:27]}  Bg6 {[%clk 0:02:42]} 8. Nxg6 {[%clk 0:02:26]}  hxg6 {[%clk 0:02:43]} 9. O-O {[%clk 0:02:20]}  Nbd7 {[%clk 0:02:42]} 10. Bd3 {[%clk 0:02:05]}  dxc4 {[%clk 0:02:32]} 11. Bxc4 {[%clk 0:02:05]}  b5 {[%clk 0:02:33]} 12. Be2 {[%clk 0:02:06]}  c5 {[%clk 0:02:33]} 13. Bf3 {[%clk 0:02:04]}  Rc8 {[%clk 0:02:32]} 14. Bb7 {[%clk 0:02:03]}  Qc7 {[%clk 0:02:32]} 15. Bxc8 {[%clk 0:02:03]}  Qxh2# {[%clk 0:02:30]} 0-1


[Site "https://www.chess.com"]

[Event "Titled Tuesday Blitz December 20 Early 2022"]
[White "lemayvega"]
[Black "Viktorin, Tomas"]
[BlackFideId "328316"]
[WhiteElo "2529"]
[BlackElo "1971"]
[Result "0-1"]
[Round "05"]
[TimeControl "180+2"]
[Date "2022.12.20"]
[WhiteClock "0:00:03"]
[BlackClock "0:00:48"]

1. e4 {[%clk 0:02:14]}  c6 {[%clk 0:02:49]} 2. d4 {[%clk 0:02:13]}  d5 {[%clk 0:02:49]} 3. Nc3 {[%clk 0:02:13]}  dxe4 {[%clk 0:02:49]} 4. Nxe4 {[%clk 0:02:14]}  Nf6 {[%clk 0:02:49]} 5. Nxf6+ {[%clk 0:02:11]}  exf6 {[%clk 0:02:50]} 6. c3 {[%clk 0:02:09]}  Bd6 {[%clk 0:02:50]} 7. Bd3 {[%clk 0:02:09]}  O-O {[%clk 0:02:50]} 8. Ne2 {[%clk 0:02:10]}  Re8 {[%clk 0:02:48]} 9. O-O {[%clk 0:02:10]}  Nd7 {[%clk 0:02:48]} 10. Bf4 {[%clk 0:02:05]}  Qc7 {[%clk 0:02:46]} 11. Bxd6 {[%clk 0:02:03]}  Qxd6 {[%clk 0:02:47]} 12. Qd2 {[%clk 0:02:02]}  Nf8 {[%clk 0:02:43]} 13. Rfe1 {[%clk 0:02:02]}  Bd7 {[%clk 0:02:42]} 14. Ng3 {[%clk 0:02:01]}  Ng6 {[%clk 0:02:40]} 15. Ne4 {[%clk 0:01:55]}  Qd5 {[%clk 0:02:33]} 16. Nc5 {[%clk 0:01:50]}  Bg4 {[%clk 0:02:05]} 17. h3 {[%clk 0:01:40]}  Bxh3 {[%clk 0:01:51]} 18. Be4 {[%clk 0:01:16]}  Rxe4 {[%clk 0:01:30]} 19. Rxe4 {[%clk 0:01:16]}  Bf5 {[%clk 0:01:18]} 20. Re2 {[%clk 0:00:58]}  b6 {[%clk 0:01:16]} 21. Nb3 {[%clk 0:00:47]}  h5 {[%clk 0:01:14]} 22. Rae1 {[%clk 0:00:46]}  h4 {[%clk 0:01:07]} 23. Re8+ {[%clk 0:00:44]}  Rxe8 {[%clk 0:01:07]} 24. Rxe8+ {[%clk 0:00:44]}  Kh7 {[%clk 0:01:07]} 25. Qe2 {[%clk 0:00:11]}  Bd7 {[%clk 0:01:07]} 26. Re4 {[%clk 0:00:05]}  h3 {[%clk 0:00:58]} 27. c4 {[%clk 0:00:05]}  Qg5 {[%clk 0:00:56]} 28. Qf3 {[%clk 0:00:03]}  Bf5 {[%clk 0:00:48]} 0-1


[Site "https://www.chess.com"]

[Event "Titled Tuesday Blitz December 20 Early 2022"]
[White "nikitakhoroshev"]
[Black "CristobalBlanco"]
[WhiteElo "2709"]
[BlackElo "2476"]
[Result "1-0"]
[Round "05"]
[TimeControl "180+2"]
[Date "2022.12.20"]
[WhiteClock "0:00:19"]
[BlackClock "0:00:01"]

1. d4 {[%clk 0:03:00]}  Nf6 {[%clk 0:02:58]} 2. c4 {[%clk 0:03:00]}  e6 {[%clk 0:02:58]} 3. Nf3 {[%clk 0:03:00]}  d5 {[%clk 0:02:58]} 4. Nc3 {[%clk 0:03:00]}  Bb4 {[%clk 0:02:56]} 5. Qa4+ {[%clk 0:03:00]}  Nc6 {[%clk 0:02:56]} 6. e3 {[%clk 0:03:01]}  O-O {[%clk 0:02:53]} 7. Bd2 {[%clk 0:03:01]}  a5 {[%clk 0:02:48]} 8. a3 {[%clk 0:02:58]}  Bd6 {[%clk 0:02:39]} 9. c5 {[%clk 0:02:43]}  Be7 {[%clk 0:02:38]} 10. b4 {[%clk 0:02:43]}  Bd7 {[%clk 0:02:37]} 11. b5 {[%clk 0:02:43]}  Nb8 {[%clk 0:02:28]} 12. Bd3 {[%clk 0:02:36]}  Be8 {[%clk 0:02:20]} 13. Ne5 {[%clk 0:02:30]}  Nfd7 {[%clk 0:02:14]} 14. f4 {[%clk 0:02:26]}  f6 {[%clk 0:02:07]} 15. Nf3 {[%clk 0:02:20]}  c6 {[%clk 0:01:55]} 16. O-O {[%clk 0:02:16]}  e5 {[%clk 0:01:50]} 17. fxe5 {[%clk 0:01:50]}  fxe5 {[%clk 0:01:49]} 18. Qc2 {[%clk 0:01:51]}  e4 {[%clk 0:01:46]} 19. Nxe4 {[%clk 0:01:52]}  dxe4 {[%clk 0:01:46]} 20. Bxe4 {[%clk 0:01:53]}  Nf6 {[%clk 0:01:44]} 21. Bd3 {[%clk 0:01:34]}  Nbd7 {[%clk 0:01:34]} 22. bxc6 {[%clk 0:01:29]}  bxc6 {[%clk 0:01:33]} 23. e4 {[%clk 0:01:29]}  Bg6 {[%clk 0:01:24]} 24. Rae1 {[%clk 0:01:28]}  h6 {[%clk 0:01:16]} 25. Qc4+ {[%clk 0:01:20]}  Kh8 {[%clk 0:01:02]} 26. Bb1 {[%clk 0:01:16]}  Rb8 {[%clk 0:00:56]} 27. Nh4 {[%clk 0:01:10]}  Bf7 {[%clk 0:00:52]} 28. Qc2 {[%clk 0:01:03]}  Bb3 {[%clk 0:00:43]} 29. Qd3 {[%clk 0:00:49]}  Bf7 {[%clk 0:00:34]} 30. Nf5 {[%clk 0:00:49]}  Nxc5 {[%clk 0:00:29]} 31. Qh3 {[%clk 0:00:42]}  Rxb1 {[%clk 0:00:25]} 32. Rxb1 {[%clk 0:00:40]}  Ncxe4 {[%clk 0:00:25]} 33. Bxh6 {[%clk 0:00:39]}  Nh5 {[%clk 0:00:08]} 34. Bxg7+ {[%clk 0:00:36]}  Kh7 {[%clk 0:00:08]} 35. Be5 {[%clk 0:00:25]}  Bg5 {[%clk 0:00:06]} 36. g4 {[%clk 0:00:22]}  Rg8 {[%clk 0:00:05]} 37. Rb7 {[%clk 0:00:19]}  Qe8 {[%clk 0:00:01]} 38. Qxh5+ {[%clk 0:00:19]} 1-0


[Site "https://www.chess.com"]

[Event "Titled Tuesday Blitz December 20 Early 2022"]
[White "pedromartinez91"]
[Black "Alibaev, Akbar"]
[BlackFideId "14200325"]
[WhiteElo "2488"]
[BlackElo "2295"]
[Result "0-1"]
[Round "05"]
[TimeControl "180+2"]
[Date "2022.12.20"]
[WhiteClock "0:00:02"]
[BlackClock "0:00:48"]

1. d4 {[%clk 0:03:00]}  Nf6 {[%clk 0:02:59]} 2. Bf4 {[%clk 0:03:00]}  g6 {[%clk 0:03:00]} 3. Nd2 {[%clk 0:02:58]}  Bg7 {[%clk 0:02:59]} 4. c3 {[%clk 0:02:58]}  O-O {[%clk 0:02:59]} 5. e3 {[%clk 0:02:58]}  d6 {[%clk 0:03:00]} 6. Ngf3 {[%clk 0:02:57]}  c5 {[%clk 0:02:59]} 7. Be2 {[%clk 0:02:56]}  Nc6 {[%clk 0:02:59]} 8. O-O {[%clk 0:02:48]}  Nh5 {[%clk 0:02:58]} 9. Bg5 {[%clk 0:02:48]}  h6 {[%clk 0:02:57]} 10. Bh4 {[%clk 0:02:48]}  g5 {[%clk 0:02:57]} 11. Bg3 {[%clk 0:02:48]}  Nxg3 {[%clk 0:02:57]} 12. hxg3 {[%clk 0:02:49]}  g4 {[%clk 0:02:49]} 13. Nh4 {[%clk 0:02:41]}  h5 {[%clk 0:02:48]} 14. dxc5 {[%clk 0:02:29]}  d5 {[%clk 0:02:39]} 15. e4 {[%clk 0:02:26]}  d4 {[%clk 0:02:39]} 16. Qc2 {[%clk 0:02:11]}  dxc3 {[%clk 0:02:36]} 17. bxc3 {[%clk 0:02:11]}  Qa5 {[%clk 0:02:31]} 18. Nb3 {[%clk 0:02:11]}  Qxc3 {[%clk 0:02:28]} 19. Qxc3 {[%clk 0:02:11]}  Bxc3 {[%clk 0:02:28]} 20. Rac1 {[%clk 0:02:12]}  Bb2 {[%clk 0:02:26]} 21. Rc2 {[%clk 0:02:10]}  Be5 {[%clk 0:02:26]} 22. Nf5 {[%clk 0:02:10]}  Rd8 {[%clk 0:02:25]} 23. Bb5 {[%clk 0:02:07]}  Nb4 {[%clk 0:02:19]} 24. Re2 {[%clk 0:02:01]}  Kf8 {[%clk 0:02:17]} 25. Rc1 {[%clk 0:01:38]}  Be6 {[%clk 0:01:54]} 26. Bc4 {[%clk 0:01:38]}  Rac8 {[%clk 0:01:53]} 27. Bxe6 {[%clk 0:01:32]}  fxe6 {[%clk 0:01:53]} 28. Ne3 {[%clk 0:01:29]}  Nd3 {[%clk 0:01:52]} 29. Rcc2 {[%clk 0:01:24]}  Kg7 {[%clk 0:01:48]} 30. Nc4 {[%clk 0:01:24]}  Kf6 {[%clk 0:01:44]} 31. Nca5 {[%clk 0:01:21]}  Rc7 {[%clk 0:01:42]} 32. Red2 {[%clk 0:01:16]}  b6 {[%clk 0:01:30]} 33. Nc4 {[%clk 0:01:00]}  bxc5 {[%clk 0:01:10]} 34. Nxe5 {[%clk 0:00:57]}  Kxe5 {[%clk 0:01:09]} 35. Nxc5 {[%clk 0:00:56]}  Nb4 {[%clk 0:01:05]} 36. Rxd8 {[%clk 0:00:16]}  Nxc2 {[%clk 0:01:04]} 37. Nd3+ {[%clk 0:00:07]}  Kxe4 {[%clk 0:01:00]} 38. Nf4 {[%clk 0:00:07]}  e5 {[%clk 0:00:59]} 39. Nxh5 {[%clk 0:00:06]}  Nd4 {[%clk 0:00:59]} 40. Rg8 {[%clk 0:00:06]}  Kf5 {[%clk 0:00:55]} 41. Ng7+ {[%clk 0:00:04]}  Ke4 {[%clk 0:00:54]} 42. Ne8 {[%clk 0:00:04]}  Rc1+ {[%clk 0:00:53]} 43. Kh2 {[%clk 0:00:04]}  Kf5 {[%clk 0:00:53]} 44. Ng7+ {[%clk 0:00:02]}  Kg6 {[%clk 0:00:48]} 0-1


[Site "https://www.chess.com"]

[Event "Titled Tuesday Blitz December 20 Early 2022"]
[White "profofchess"]
[Black "milovichalex"]
[WhiteElo "2442"]
[BlackElo "2303"]
[Result "1-0"]
[Round "05"]
[TimeControl "180+2"]
[Date "2022.12.20"]
[WhiteClock "0:00:06"]
[BlackClock "0:00:04"]

1. e4 {[%clk 0:02:59]}  e5 {[%clk 0:02:58]} 2. Bc4 {[%clk 0:02:58]}  Nf6 {[%clk 0:02:58]} 3. d3 {[%clk 0:02:59]}  Nc6 {[%clk 0:02:57]} 4. Nc3 {[%clk 0:02:58]}  Bb4 {[%clk 0:02:57]} 5. Nf3 {[%clk 0:02:58]}  d5 {[%clk 0:02:57]} 6. exd5 {[%clk 0:02:58]}  Nxd5 {[%clk 0:02:57]} 7. O-O {[%clk 0:02:57]}  Nxc3 {[%clk 0:02:57]} 8. bxc3 {[%clk 0:02:57]}  Bxc3 {[%clk 0:02:57]} 9. Ng5 {[%clk 0:02:55]}  Be6 {[%clk 0:02:42]} 10. Nxe6 {[%clk 0:02:24]}  fxe6 {[%clk 0:02:40]} 11. Rb1 {[%clk 0:02:17]}  O-O {[%clk 0:02:29]} 12. Rxb7 {[%clk 0:02:07]}  Bd4 {[%clk 0:01:51]} 13. Bxe6+ {[%clk 0:01:50]}  Kh8 {[%clk 0:01:50]} 14. Rb1 {[%clk 0:01:37]}  Rxf2 {[%clk 0:00:20]} 15. Rxf2 {[%clk 0:01:30]}  Qf6 {[%clk 0:00:19]} 16. Qf3 {[%clk 0:00:34]}  Bxf2+ {[%clk 0:00:16]} 17. Qxf2 {[%clk 0:00:34]}  Qxe6 {[%clk 0:00:16]} 18. Be3 {[%clk 0:00:16]}  Qxa2 {[%clk 0:00:15]} 19. Rf1 {[%clk 0:00:16]}  h6 {[%clk 0:00:14]} 20. Qf3 {[%clk 0:00:16]}  Qxc2 {[%clk 0:00:13]} 21. Rc1 {[%clk 0:00:16]}  Qxd3 {[%clk 0:00:10]} 22. Rxc6 {[%clk 0:00:17]}  Rd8 {[%clk 0:00:08]} 23. Rxc7 {[%clk 0:00:12]}  e4 {[%clk 0:00:05]} 24. Qg3 {[%clk 0:00:05]}  Qd1+ {[%clk 0:00:04]} 25. Kf2 {[%clk 0:00:06]} 1-0


[Site "https://www.chess.com"]

[Event "Titled Tuesday Blitz December 20 Early 2022"]
[White "santosalberto1987"]
[Black "Rakesh, Kumar Jena"]
[BlackFideId "5084822"]
[WhiteElo "2495"]
[BlackElo "2303"]
[Result "0-1"]
[Round "05"]
[TimeControl "180+2"]
[Date "2022.12.20"]
[WhiteClock "0:00:36"]
[BlackClock "0:01:26"]

1. d4 {[%clk 0:03:00]}  Nf6 {[%clk 0:02:54]} 2. c4 {[%clk 0:02:55]}  e6 {[%clk 0:02:54]} 3. Nf3 {[%clk 0:02:55]}  b6 {[%clk 0:02:53]} 4. g3 {[%clk 0:02:54]}  Bb7 {[%clk 0:02:54]} 5. Bg2 {[%clk 0:02:54]}  Be7 {[%clk 0:02:54]} 6. O-O {[%clk 0:02:51]}  O-O {[%clk 0:02:53]} 7. Nc3 {[%clk 0:02:51]}  Ne4 {[%clk 0:02:53]} 8. Qc2 {[%clk 0:02:51]}  f5 {[%clk 0:02:49]} 9. Nd2 {[%clk 0:02:48]}  d5 {[%clk 0:02:49]} 10. Nf3 {[%clk 0:02:39]}  Nd7 {[%clk 0:02:47]} 11. b3 {[%clk 0:02:14]}  Rc8 {[%clk 0:02:43]} 12. Bf4 {[%clk 0:02:07]}  c5 {[%clk 0:02:43]} 13. dxc5 {[%clk 0:02:06]}  Ndxc5 {[%clk 0:02:40]} 14. Nxe4 {[%clk 0:02:00]}  Nxe4 {[%clk 0:02:39]} 15. Rfd1 {[%clk 0:01:57]}  Qe8 {[%clk 0:02:38]} 16. Nd2 {[%clk 0:01:30]}  Bf6 {[%clk 0:02:31]} 17. Nxe4 {[%clk 0:01:28]}  fxe4 {[%clk 0:02:25]} 18. Rac1 {[%clk 0:01:27]}  Qf7 {[%clk 0:02:12]} 19. Qb1 {[%clk 0:01:21]}  e5 {[%clk 0:02:03]} 20. Bd2 {[%clk 0:01:20]}  Be7 {[%clk 0:01:58]} 21. Be1 {[%clk 0:01:15]}  e3 {[%clk 0:01:48]} 22. fxe3 {[%clk 0:01:09]}  Bc5 {[%clk 0:01:44]} 23. Qd3 {[%clk 0:00:36]}  dxc4 {[%clk 0:01:26]} 0-1


[Site "https://www.chess.com"]

[Event "Titled Tuesday Blitz December 20 Early 2022"]
[White "stollenmonster"]
[Black "Etoilegeniale"]
[WhiteElo "2932"]
[BlackElo "2593"]
[Result "1-0"]
[Round "05"]
[TimeControl "180+2"]
[Date "2022.12.20"]
[WhiteClock "0:00:56"]
[BlackClock "0:00:03"]

1. e4 {[%clk 0:03:00]}  d6 {[%clk 0:02:57]} 2. g3 {[%clk 0:02:59]}  Nf6 {[%clk 0:02:52]} 3. Bg2 {[%clk 0:02:58]}  c5 {[%clk 0:02:49]} 4. Ne2 {[%clk 0:02:58]}  g6 {[%clk 0:02:48]} 5. h3 {[%clk 0:02:56]}  Bg7 {[%clk 0:02:48]} 6. d4 {[%clk 0:02:57]}  cxd4 {[%clk 0:02:48]} 7. Nxd4 {[%clk 0:02:58]}  O-O {[%clk 0:02:48]} 8. O-O {[%clk 0:02:58]}  Nc6 {[%clk 0:02:47]} 9. Ne2 {[%clk 0:02:58]}  Bd7 {[%clk 0:02:47]} 10. Nbc3 {[%clk 0:02:58]}  Rc8 {[%clk 0:02:45]} 11. a4 {[%clk 0:02:57]}  a6 {[%clk 0:02:45]} 12. Nd5 {[%clk 0:02:57]}  Nxd5 {[%clk 0:02:43]} 13. exd5 {[%clk 0:02:58]}  Ne5 {[%clk 0:02:33]} 14. Ra2 {[%clk 0:02:57]}  b5 {[%clk 0:02:15]} 15. axb5 {[%clk 0:02:57]}  axb5 {[%clk 0:02:15]} 16. b3 {[%clk 0:02:57]}  Be8 {[%clk 0:02:06]} 17. Be3 {[%clk 0:02:45]}  Nd7 {[%clk 0:01:49]} 18. Nd4 {[%clk 0:02:43]}  Nf6 {[%clk 0:01:37]} 19. Qe2 {[%clk 0:02:20]}  b4 {[%clk 0:01:29]} 20. Qd2 {[%clk 0:02:19]}  Rb8 {[%clk 0:01:13]} 21. Ra7 {[%clk 0:02:17]}  Bd7 {[%clk 0:00:43]} 22. Re1 {[%clk 0:01:55]}  Qc8 {[%clk 0:00:40]} 23. Nc6 {[%clk 0:01:49]}  Bxc6 {[%clk 0:00:40]} 24. dxc6 {[%clk 0:01:50]}  d5 {[%clk 0:00:40]} 25. Bf4 {[%clk 0:01:35]}  Rb6 {[%clk 0:00:30]} 26. c7 {[%clk 0:01:32]}  e6 {[%clk 0:00:25]} 27. Rea1 {[%clk 0:01:07]}  Nd7 {[%clk 0:00:22]} 28. Ra8 {[%clk 0:00:56]}  Qxa8 {[%clk 0:00:22]} 29. Rxa8 {[%clk 0:00:57]}  Rxa8 {[%clk 0:00:22]} 30. Bxd5 {[%clk 0:00:58]}  exd5 {[%clk 0:00:07]} 31. Qxd5 {[%clk 0:00:58]}  Rba6 {[%clk 0:00:03]} 32. Qxd7 {[%clk 0:00:56]} 1-0


[Site "https://www.chess.com"]